fUST/lending_fUST_20251002
["ID","MTS","AMOUNT","RATE_DAILY","PERIOD"]
[388816284,1759387848395,-1000.0,0.00022121,2]
[388816285,1759387848404,-172.52611104,0.00022121,2]
[388816286,1759387848414,-507.18465875,0.00022121,2]
[388816287,1759387848423,-1000.0,0.00022121,2]
[388816288,1759387848432,-1000.0,0.00022121,2]
[388816289,1759387848440,-1000.0,0.00022121,2]
[388816290,1759387848450,-1000.0,0.00022121,2]
[388816291,1759387848459,-1000.0,0.00022121,2]
[388816292,1759387848468,-1000.0,0.00022121,2]
[388816293,1759387848478,-1000.0,0.00022121,2]
[388816294,1759387848487,-1000.0,0.00022121,2]
[388816295,1759387848496,-1000.0,0.00022121,2]
[388816296,1759387848505,-1000.0,0.00022121,2]
[388816297,1759387848514,-151.0,0.00022121,7]
[388816298,1759387848523,-151.0,0.00022121,7]
[388816299,1759387848532,-151.0,0.00022121,7]
[388816300,1759387848542,-153.274425,0.00022121,7]
[388816301,1759387848551,-151.0,0.00022121,7]
[388816302,1759387848560,-237.423303,0.00022121,7]
[388816303,1759387848569,-237.423303,0.00022121,7]
[388816304,1759387848579,-237.423303,0.00022121,7]
[388816305,1759387848589,-237.423303,0.00022121,7]
[388816306,1759387848598,-151.0,0.00022121,7]
[388816307,1759387848607,-151.0,0.00022121,7]
[388816308,1759387848616,-151.0,0.00022121,7]
[388816309,1759387848625,-151.0,0.00022121,7]
[388816310,1759387848634,-471.11802,0.00022121,7]
[388816311,1759387848643,-471.11802,0.00022121,7]
[388816312,1759387848653,-471.11802,0.00022121,7]
[388816313,1759387848663,-471.11802,0.00022121,7]
[388816314,1759387848674,-151.0,0.00022121,7]
[388816315,1759387848683,-151.0,0.00022121,7]
[388816316,1759387848692,-151.0,0.00022121,7]
[388816317,1759387848701,-151.0,0.00022121,7]
[388816318,1759387848711,-163.80817,0.00022121,7]
[388816319,1759387848721,-181.055094,0.00022121,7]
[388816320,1759387848730,-163.80817,0.00022121,7]
[388816321,1759387848739,-163.80817,0.00022121,7]
[388816322,1759387848748,-163.80817,0.00022121,7]
[388816323,1759387848757,-151.0,0.00022121,7]
[388816324,1759387848766,-151.0,0.00022121,7]
[388816325,1759387848776,-275.853149,0.00022121,7]
[388816326,1759387848785,-151.0,0.00022121,7]
[388816327,1759387848793,-151.0,0.00022121,7]
[388816328,1759387848803,-151.0,0.00022121,7]
[388816329,1759387848812,-222.034005,0.00022121,7]
[388816330,1759387848820,-151.0,0.00022121,7]
[388816331,1759387848830,-222.034005,0.00022121,7]
[388816332,1759387848838,-151.0,0.00022121,7]
[388816333,1759387848847,-222.034005,0.00022121,7]
[388816334,1759387848934,-222.034005,0.00022121,7]
[388816335,1759387848943,-151.0,0.00022121,7]
[388816336,1759387848953,-168.0,0.00022124,2]
[388816337,1759387848962,-573.67707166,0.00022133,2]
[388816338,1759387848971,-2737.18,0.00022138,3]
[388816339,1759387848982,-1368.58,0.00022138,3]
[388816340,1759387848991,-684.3,0.00022138,3]
[388816341,1759387849001,-342.14,0.00022138,3]
[388816342,1759387849010,-151.0,0.00022138,7]
[388816343,1759387849021,-300.781635,0.00022138,7]
[388816344,1759387849031,-151.0,0.00022138,7]
[388816345,1759387849040,-151.0,0.00022138,7]
[388816346,1759387849051,-151.0,0.00022138,7]
[388816347,1759387849061,-154.533556,0.00022138,7]
[388816348,1759387849071,-293.36416222,0.00022138,7]
[388816349,1759387849080,-160.0,0.00022138,7]
[388816350,1759387849090,-500.0,0.00022147,2]
[388816351,1759387849103,-818.0,0.00022198,2]
[388816352,1759387849116,-260.0,0.00022213,2]
[388816353,1759387849126,-818.0,0.00022247,2]
[388816354,1759387849135,-818.0,0.00022267,2]
[388816355,1759387849145,-168.0,0.00022314,2]
[388816356,1759387849155,-4895.08821957,0.00022333,2]
[388816357,1759387849164,-409.987221,0.00022333,7]
[388816358,1759387849173,-10000.0,0.00022333,7]
[388816359,1759387849184,-409.987221,0.00022333,7]
[388816360,1759387849193,-10000.0,0.00022333,7]
[388816361,1759387849204,-151.0,0.00022333,7]
[388816362,1759387849213,-409.987221,0.00022333,7]
[388816363,1759387849222,-10000.0,0.00022333,7]
[388816364,1759387849230,-151.0,0.00022333,7]
[388816365,1759387849239,-409.987221,0.00022333,7]
[388816366,1759387849248,-151.0,0.00022333,7]
[388816367,1759387849257,-4357.44585077,0.00022333,7]
[388816368,1759387849962,-151.0,0.0002076,2]
[388816369,1759387849972,-300.0,0.00021993,20]
[388816370,1759387849982,-5642.55414923,0.00022333,7]
[388816371,1759387849991,-151.0,0.00022333,7]
[388816372,1759387850000,-151.0,0.00022333,7]
[388816373,1759387850010,-153.021117,0.00022333,7]
[388816374,1759387850019,-151.0,0.00022333,7]
[388816375,1759387850029,-151.0,0.00022333,7]
[388816376,1759387850038,-151.0,0.00022333,7]
[388816377,1759387850047,-217.09829884,0.00022333,7]
[388816378,1759387850056,-151.0,0.00022335,7]
[388816379,1759387850066,-151.0,0.00022335,7]
[388816380,1759387850075,-157.368813,0.00022335,7]
[388816381,1759387850084,-151.0,0.00022335,7]
[388816382,1759387850093,-151.0,0.00022335,7]
[388816383,1759387850102,-183.476538,0.00022335,7]
[388816384,1759387850112,-183.476538,0.00022335,7]
[388816385,1759387850121,-183.476538,0.00022335,7]
[388816386,1759387850130,-183.476538,0.00022335,7]
[388816387,1759387850139,-168.544933,0.00022335,7]
[388816388,1759387850149,-168.544933,0.00022335,7]
[388816389,1759387850159,-168.544933,0.00022335,7]
[388816390,1759387850168,-151.0,0.00022335,7]
[388816391,1759387850178,-151.0,0.00022335,7]
[388816392,1759387850187,-151.0,0.00022335,7]
[388816393,1759387850196,-151.0,0.00022335,7]
[388816394,1759387850206,-168.544933,0.00022335,7]
[388816395,1759387850215,-189.141946,0.00022335,7]
[388816396,1759387850224,-151.0,0.00022335,7]
[388816397,1759387850233,-210.649831,0.00022335,7]
[388816398,1759387850242,-151.0,0.00022335,7]
[388816399,1759387850251,-151.0,0.00022335,7]
[388816400,1759387850262,-4886.58893433,0.00022366,2]
[388816401,1759387850271,-168.0,0.00022377,2]
[388816402,1759387850280,-151.0,0.00022396,7]
[388816403,1759387850290,-151.0,0.00022396,7]
[388816404,1759387850299,-151.0,0.00022396,7]
[388816405,1759387850309,-151.0,0.00022396,7]
[388816406,1759387850319,-151.0,0.00022396,7]
[388816407,1759387850329,-151.0,0.00022396,7]
[388816408,1759387850338,-151.0,0.00022396,7]
[388816409,1759387850347,-151.0,0.00022396,7]
[388816410,1759387850357,-151.0,0.00022396,7]
[388816411,1759387850366,-151.0,0.00022396,7]
[388816412,1759387850375,-151.0,0.00022396,7]
[388816413,1759387850384,-151.0,0.00022396,7]
[388816414,1759387850393,-151.0,0.00022396,7]
[388816415,1759387850403,-277.113802,0.00022396,7]
[388816416,1759387850412,-151.0,0.00022396,7]
[388816417,1759387850421,-254.643056,0.00022396,7]
[388816418,1759387850430,-254.643056,0.00022396,7]
[388816419,1759387850439,-254.643056,0.00022396,7]
[388816420,1759387850447,-254.643056,0.00022396,7]
[388816421,1759387850456,-778.449475,0.00022396,7]
[388816422,1759387850466,-778.449475,0.00022396,7]
[388816423,1759387850475,-778.449475,0.00022396,7]
[388816424,1759387850484,-778.449475,0.00022396,7]
[388816425,1759387850494,-2933.0,0.00022396,2]
[388816426,1759387850503,-1003.02,0.00022396,2]
[388816427,1759387850512,-2157.0,0.00022396,2]
[388816428,1759387850521,-630.0,0.00022396,2]
[388816429,1759387850530,-150.0,0.00022396,2]
[388816430,1759387850539,-150.066,0.00022396,2]
[388816431,1759387850548,-150.0,0.00022396,2]
[388816432,1759387850557,-410.0,0.00022396,2]
[388816433,1759387850567,-429.668,0.00022396,2]
[388816434,1759387850575,-800.0,0.00022404,2]
[388816435,1759387850586,-151.0,0.00022416,7]
[388816436,1759387850595,-151.0,0.00022416,7]
[388816437,1759387850604,-151.0,0.00022416,7]
[388816438,1759387850613,-151.0,0.00022416,7]
[388816439,1759387850622,-163.80817,0.00022416,7]
[388816440,1759387850631,-163.80817,0.00022416,7]
[388816441,1759387850640,-163.80817,0.00022416,7]
[388816442,1759387850649,-163.80817,0.00022416,7]
[388816443,1759387850658,-151.0,0.00022416,7]
[388816444,1759387850667,-151.0,0.00022416,7]
[388816445,1759387850676,-151.0,0.00022416,7]
[388816446,1759387850685,-158.723433,0.00022416,7]
[388816447,1759387850694,-222.034005,0.00022416,7]
[388816448,1759387850704,-151.0,0.00022416,7]
[388816449,1759387850713,-222.034005,0.00022416,7]
[388816450,1759387850723,-151.0,0.00022416,7]
[388816451,1759387850732,-222.034005,0.00022416,7]
[388816452,1759387850741,-222.034005,0.00022416,7]
[388816453,1759387850751,-151.0,0.00022416,7]
[388816454,1759387850760,-2000.0,0.00022416,2]
[388816455,1759387850769,-2000.0,0.00022416,2]
[388816456,1759387850778,-2000.0,0.00022416,2]
[388816457,1759387850787,-2000.0,0.00022416,2]
[388816458,1759387850796,-1709.60530462,0.00022416,2]
[388816459,1759387850807,-290.39469538,0.00022416,2]
[388816460,1759387850817,-728.57221832,0.00022416,2]
[388816466,1759388844460,1000.94949419,0.00025999,60]
[388816467,1759388880134,155.01,0.00015135,2]
[388816468,1759388880399,154.99,0.00015135,2]
[388816482,1759389032189,-185.97539814,0.00018832,2]
[388816483,1759389032198,-2244.55776668,0.00019178,2]
[388816484,1759389032208,-725.20009177,0.00019989,7]
[388816485,1759389032217,-825.0723516,0.0002001,2]
[388816486,1759389032227,-37525.9510731,0.00020108,2]
[388816489,1759389032252,-12474.0489269,0.00020108,2]
[388816490,1759389032262,-1200.0,0.00020108,2]
[388816491,1759389032271,-300.0,0.00020108,2]
[388816492,1759389032280,-300.0,0.00020108,2]
[388816493,1759389032289,-300.0,0.00020108,2]
[388816494,1759389032298,-1200.0,0.00020108,2]
[388816495,1759389032307,-300.0,0.00020108,2]
[388816496,1759389032316,-300.0,0.00020108,2]
[388816497,1759389032325,-500.0,0.00020109,2]
[388816498,1759389032335,-500.0,0.00020109,2]
[388816499,1759389032344,-381.77466901,0.00020109,2]
[388816500,1759389032353,-500.0,0.00020109,2]
[388816501,1759389032363,-551.76498483,0.00020109,2]
[388816503,1759389032372,-500.0,0.00020109,2]
[388816504,1759389032381,-500.0,0.00020109,2]
[388816523,1759389032474,-500.0,0.00020109,2]
[388816526,1759389032491,-500.0,0.00020109,2]
[388816529,1759389032501,-500.0,0.00020109,2]
[388816530,1759389032510,-500.0,0.00020109,2]
[388816531,1759389032520,-500.0,0.00020109,2]
[388816532,1759389032530,-500.0,0.00020109,2]
[388816533,1759389032544,-418.92980379,0.00020109,2]
[388816534,1759389032554,-500.0,0.00020109,2]
[388816535,1759389032563,-185.91144861,0.00020109,2]
[388816536,1759389032572,-500.0,0.00020109,2]
[388816537,1759389032581,-500.0,0.00020109,2]
[388816538,1759389032591,-500.0,0.00020109,2]
[388816539,1759389032601,-500.0,0.00020109,2]
[388816540,1759389032611,-421.53495457,0.00020109,2]
[388816541,1759389032620,-500.0,0.00020109,2]
[388816542,1759389032630,-500.0,0.00020109,2]
[388816543,1759389032639,-429.2269435,0.00020109,2]
[388816544,1759389032648,-500.0,0.00020109,2]
[388816545,1759389032658,-500.0,0.00020109,2]
[388816546,1759389032667,-500.0,0.00020109,2]
[388816547,1759389032677,-500.0,0.00020109,2]
[388816548,1759389032686,-500.0,0.00020109,2]
[388816549,1759389032696,-500.0,0.00020109,2]
[388816550,1759389032705,-500.0,0.00020109,2]
[388816551,1759389032716,-500.0,0.00020109,2]
[388816552,1759389032725,-330.20056815,0.00020109,2]
[388816553,1759389032735,-500.0,0.00020109,2]
[388816554,1759389032745,-500.0,0.00020109,2]
[388816555,1759389032755,-500.0,0.00020109,2]
[388816556,1759389032764,-500.0,0.00020109,2]
[388816557,1759389032774,-500.0,0.00020109,2]
[388816558,1759389032783,-500.0,0.00020109,2]
[388816559,1759389032793,-500.0,0.00020109,2]
[388816560,1759389032802,-500.0,0.00020109,2]
[388816561,1759389032811,-500.0,0.00020109,2]
[388816562,1759389032820,-500.0,0.00020109,2]
[388816563,1759389032830,-500.0,0.00020109,2]
[388816564,1759389032840,-500.0,0.00020109,2]
[388816565,1759389032849,-500.0,0.00020109,2]
[388816566,1759389032858,-500.0,0.00020109,2]
[388816567,1759389032868,-500.0,0.00020109,2]
[388816568,1759389032877,-352.63695293,0.00020109,2]
[388816569,1759389032886,-617.00964378,0.00020109,2]
[388816570,1759389032895,-293.43242757,0.00020379,2]
[388816571,1759389032904,-234.00747223,0.00020379,2]
[388816572,1759389032913,-160.0,0.00020379,2]
[388816573,1759389032922,-500.0,0.00020383,2]
[388816574,1759389032931,-300.0,0.00020388,2]
[388816575,1759389032941,-300.0,0.00020388,2]
[388816576,1759389032950,-300.0,0.00020388,2]
[388816577,1759389032959,-300.0,0.00020388,2]
[388816578,1759389032968,-300.0,0.00020388,2]
[388816579,1759389032977,-300.0,0.00020388,2]
[388816580,1759389032986,-300.0,0.00020388,2]
[388816581,1759389032995,-300.0,0.00020388,2]
[388816582,1759389033005,-300.0,0.00020388,2]
[388816583,1759389033014,-300.0,0.00020388,2]
[388816584,1759389033023,-300.0,0.00020388,2]
[388816585,1759389033033,-300.0,0.00020388,2]
[388816586,1759389033042,-300.0,0.00020388,2]
[388816587,1759389033051,-300.0,0.00020388,2]
[388816588,1759389033060,-300.0,0.00020388,2]
[388816589,1759389033069,-600.0,0.00020388,2]
[388816590,1759389033078,-500.0,0.00020425,2]
[388816591,1759389033087,-501.64434681,0.00020425,2]
[388816592,1759389033097,-500.0,0.00020425,2]
[388816593,1759389033106,-500.0,0.00020425,2]
[388816594,1759389033115,-500.0,0.00020425,2]
[388816595,1759389033124,-500.0,0.00020425,2]
[388816596,1759389033133,-1437.67097429,0.00020562,2]
[388816597,1759389033143,-500.0,0.00020593,2]
[388816598,1759389033152,-500.0,0.00020657,2]
[388816599,1759389033161,-166.0,0.00020689,2]
[388816600,1759389033171,-500.0,0.00020689,2]
[388816601,1759389033180,-500.0,0.00020689,2]
[388816602,1759389033190,-500.0,0.00020689,2]
[388816603,1759389033199,-500.0,0.00020689,2]
[388816604,1759389033213,-500.0,0.00020689,2]
[388816605,1759389033222,-253.15011158,0.00020689,2]
[388816606,1759389033232,-1650.71,0.00020723,10]
[388816607,1759389033242,-500.0,0.00020733,2]
[388816608,1759389033252,-502.26452921,0.00020733,2]
[388816609,1759389033263,-500.0,0.00020733,2]
[388816610,1759389033273,-502.78880425,0.00020733,2]
[388816611,1759389033283,-500.0,0.00020733,2]
[388816612,1759389033293,-500.0,0.00020733,2]
[388816613,1759389033303,-635.4633957,0.00020733,2]
[388816614,1759389033313,-500.0,0.00020733,2]
[388816615,1759389033323,-207.63231706,0.00020733,2]
[388816616,1759389033334,-150.0,0.00020733,2]
[388816617,1759389033344,-500.0,0.00020733,2]
[388816618,1759389033354,-500.0,0.00020733,2]
[388816619,1759389033364,-500.0,0.00020733,2]
[388816620,1759389033373,-500.0,0.00020733,2]
[388816621,1759389033383,-500.0,0.00020733,2]
[388816622,1759389033393,-1004.61169406,0.00020777,2]
[388816624,1759389033402,-150.0,0.00020789,2]
[388816625,1759389033411,-300.0,0.00020789,2]
[388816626,1759389033420,-450.0,0.00020789,2]
[388816627,1759389033430,-600.0,0.00020789,2]
[388816629,1759389033439,-750.0,0.00020789,2]
[388816630,1759389033449,-792.09886157,0.00020789,2]
[388816631,1759389033459,-500.0,0.00020836,2]
[388816633,1759389033469,-223.38,0.00020836,2]
[388816634,1759389033479,-300.0,0.0002087,2]
[388816636,1759389033489,-800.0,0.00020905,2]
[388816637,1759389033499,-500.0,0.00020931,2]
[388816639,1759389033509,-500.0,0.00020973,2]
[388816641,1759389033519,-500.0,0.00020973,2]
[388816643,1759389033528,-500.0,0.00020973,2]
[388816645,1759389033542,-500.0,0.00020973,2]
[388816647,1759389033553,-501.60768823,0.00020973,2]
[388816649,1759389033562,-500.0,0.00020973,2]
[388816651,1759389033572,-500.0,0.00020973,2]
[388816653,1759389033583,-500.0,0.00020973,2]
[388816655,1759389033593,-500.0,0.00020973,2]
[388816657,1759389033603,-500.0,0.00020973,2]
[388816659,1759389033614,-500.0,0.00020973,2]
[388816661,1759389033624,-500.0,0.00020973,2]
[388816671,1759389033718,-500.0,0.00020973,2]
[388816673,1759389033728,-500.0,0.00020973,2]
[388816675,1759389033738,-500.0,0.00020973,2]
[388816677,1759389033748,-1000.0,0.00020973,2]
[388816679,1759389033757,-395.90823976,0.00020973,2]
[388816681,1759389033767,-500.0,0.00020973,2]
[388816683,1759389033777,-1000.0,0.00020973,2]
[388816685,1759389033786,-1000.0,0.00020973,2]
[388816686,1759389033796,-200.0,0.0002098,10]
[388816687,1759389033806,-200.0,0.0002098,10]
[388816688,1759389033816,-200.0,0.0002098,10]
[388816689,1759389033826,-200.0,0.0002098,10]
[388816690,1759389033836,-207.921585,0.0002098,10]
[388816691,1759389033845,-167.28,0.0002098,3]
[388816692,1759389033855,-849.61,0.0002098,3]
[388816693,1759389033864,-424.81,0.0002098,3]
[388816694,1759389033874,-212.4,0.0002098,3]
[388816695,1759389033883,-637.24,0.0002098,3]
[388816696,1759389033893,-100000.0,0.0002099,2]
[388816697,1759389033902,-301.53218138,0.00021007,2]
[388816698,1759389033913,-1437.67097429,0.0002104,2]
[388816699,1759389033926,-800.0,0.00021094,2]
[388816700,1759389033943,-1437.67097429,0.00021134,2]
[388816701,1759389033962,-200.0,0.0002114,2]
[388816702,1759389033972,-1003.27442745,0.00021141,2]
[388816703,1759389033982,-167.83569748,0.00021145,2]
[388816704,1759389033991,-500.0,0.00021205,2]
[388816705,1759389034001,-302.0,0.00021237,2]
[388816706,1759389034010,-464.71334271,0.00021281,2]
[388816707,1759389034020,-1000.0,0.00021281,2]
[388816708,1759389034029,-1000.0,0.00021281,2]
[388816709,1759389034040,-455.59347907,0.00021281,2]
[388816710,1759389034049,-1000.0,0.00021281,2]
[388816711,1759389034059,-1000.0,0.00021281,2]
[388816712,1759389034068,-469.30682101,0.00021281,2]
[388816713,1759389034077,-1000.0,0.00021281,2]
[388816714,1759389034086,-1000.0,0.00021281,2]
[388816715,1759389034096,-5413.97543245,0.00021362,2]
[388816716,1759389034106,-800.0,0.0002138,2]
[388816717,1759389034115,-500.0,0.00021387,2]
[388816718,1759389034125,-500.0,0.00021387,2]
[388816719,1759389034134,-500.0,0.00021387,2]
[388816720,1759389034144,-500.0,0.00021387,2]
[388816721,1759389034153,-500.0,0.00021387,2]
[388816722,1759389034162,-500.0,0.00021387,2]
[388816723,1759389034171,-500.0,0.00021479,2]
[388816724,1759389034181,-158.36469961,0.0002149,2]
[388816725,1759389034190,-1000.0,0.00021521,2]
[388816726,1759389034199,-1000.0,0.00021521,2]
[388816727,1759389034210,-1000.0,0.00021521,2]
[388816728,1759389034220,-1000.0,0.00021521,2]
[388816729,1759389034229,-1000.0,0.00021521,2]
[388816730,1759389034239,-1000.0,0.00021521,2]
[388816731,1759389034248,-500.0,0.00021521,2]
[388816732,1759389034258,-500.0,0.00021521,2]
[388816733,1759389034267,-500.0,0.00021521,2]
[388816734,1759389034277,-500.94328462,0.00021521,2]
[388816735,1759389034287,-1000.0,0.00021521,2]
[388816736,1759389034296,-1000.0,0.00021521,2]
[388816737,1759389034306,-1000.0,0.00021521,2]
[388816738,1759389034315,-1000.0,0.00021521,2]
[388816739,1759389034324,-1500.0,0.00021521,2]
[388816740,1759389034333,-1500.0,0.00021521,2]
[388816741,1759389034342,-170.03617472,0.00021573,2]
[388816742,1759389034351,-410.0,0.00021581,2]
[388816743,1759389034360,-289.0,0.00021584,2]
[388816744,1759389034370,-164.0,0.00021589,5]
[388816745,1759389034379,-3000.0,0.000216,2]
[388816746,1759389034388,-160.0,0.00021608,2]
[388816747,1759389034397,-3000.0,0.0002161,2]
[388816748,1759389034406,-9484.60856007,0.0002161,2]
[388816749,1759389034416,-336.0,0.00021613,2]
[388816750,1759389034424,-3000.0,0.0002162,2]
[388816751,1759389034433,-1437.67097429,0.00021622,2]
[388816752,1759389034443,-3000.0,0.0002163,2]
[388816753,1759389034453,-3000.0,0.0002164,2]
[388816754,1759389034463,-3000.0,0.0002165,2]
[388816755,1759389034473,-3000.0,0.0002166,2]
[388816756,1759389034482,-3000.0,0.0002167,2]
[388816757,1759389034491,-3000.0,0.0002168,2]
[388816758,1759389034501,-3000.0,0.0002169,2]
[388816759,1759389034510,-3000.0,0.000217,2]
[388816760,1759389034520,-3000.0,0.0002171,2]
[388816761,1759389034529,-5783.363083,0.0002172,2]
[388816762,1759389034543,-1437.67097429,0.00021732,2]
[388816763,1759389034551,-500.0,0.00021753,2]
[388816764,1759389034561,-338.0,0.0002179,2]
[388816765,1759389034570,-500.0,0.00021829,2]
[388816766,1759389034580,-1500.0,0.00021829,2]
[388816767,1759389034590,-500.0,0.00021829,2]
[388816768,1759389034599,-455.83560235,0.00021829,2]
[388816769,1759389034610,-501.44660787,0.00021829,2]
[388816770,1759389034620,-1500.0,0.00021829,2]
[388816771,1759389034629,-336.0,0.00021884,2]
[388816772,1759389034639,-336.0,0.00021889,2]
[388816773,1759389034648,-1680.0,0.00021893,2]
[388816774,1759389034658,-369.0,0.00021893,2]
[388816775,1759389034668,-300.0,0.00021893,2]
[388816776,1759389034677,-420.0,0.00021893,2]
[388816777,1759389034687,-151.0,0.000219,3]
[388816778,1759389034696,-800.0,0.00021918,2]
[388816779,1759389034707,-1000.0,0.00021935,2]
[388816780,1759389034717,-1000.0,0.00021935,2]
[388816781,1759389034726,-1000.0,0.00021935,2]
[388816782,1759389034736,-570.75014377,0.00021935,2]
[388816783,1759389034746,-1000.0,0.00021935,2]
[388816784,1759389034756,-500.0,0.00021935,2]
[388816785,1759389034765,-501.88836466,0.00021973,2]
[388816786,1759389034775,-501.25841473,0.00021973,2]
[388816787,1759389034853,-500.0,0.00021973,2]
[388816788,1759389034863,-500.0,0.00021973,2]
[388816789,1759389034873,-500.0,0.00021973,2]
[388816790,1759389034881,-500.0,0.00021973,2]
[388816791,1759389034891,-500.5264877,0.00021973,2]
[388816792,1759389034900,-500.0,0.00021973,2]
[388816793,1759389034909,-489.18641718,0.00021973,2]
[388816794,1759389034919,-586.7981431,0.00021973,2]
[388816795,1759389034928,-1184.696356,0.00021973,2]
[388816796,1759389034937,-321.5054306,0.00021973,2]
[388816797,1759389034947,-825.07235156,0.00021977,2]
[388816798,1759389034957,-399.0,0.00021983,2]
[388816799,1759389034966,-305.93289526,0.0002199,2]
[388816800,1759389034975,-151.0,0.00021991,7]
[388816801,1759389034984,-580.793019,0.00021991,7]
[388816802,1759389034994,-580.793019,0.00021991,7]
[388816803,1759389035003,-580.793019,0.00021991,7]
[388816804,1759389035013,-580.793019,0.00021991,7]
[388816805,1759389035022,-151.0,0.00021991,7]
[388816806,1759389035031,-151.0,0.00021991,7]
[388816807,1759389035040,-151.0,0.00021991,7]
[388816808,1759389035049,-151.0,0.00021991,7]
[388816809,1759389035059,-151.0,0.00021991,7]
[388816810,1759389035068,-151.0,0.00021991,7]
[388816811,1759389035078,-151.0,0.00021991,7]
[388816812,1759389035087,-156.150588,0.00021991,7]
[388816813,1759389035096,-152.552216,0.00021991,7]
[388816814,1759389035105,-151.0,0.00021991,7]
[388816815,1759389035116,-151.0,0.00021991,7]
[388816816,1759389035125,-151.0,0.00021991,7]
[388816817,1759389035134,-151.0,0.00021991,7]
[388816818,1759389035143,-160.0,0.00021991,7]
[388816819,1759389035152,-386.87979,0.00021991,7]
[388816820,1759389035162,-386.87979,0.00021991,7]
[388816821,1759389035171,-386.87979,0.00021991,7]
[388816822,1759389035180,-386.87979,0.00021991,7]
[388816823,1759389035189,-151.0,0.00021991,7]
[388816824,1759389035199,-151.0,0.00021991,7]
[388816825,1759389035209,-151.0,0.00021991,7]
[388816826,1759389035218,-151.0,0.00021991,7]
[388816827,1759389035227,-151.0,0.00021991,7]
[388816828,1759389035236,-151.0,0.00021991,7]
[388816829,1759389035245,-151.0,0.00021991,7]
[388816830,1759389035255,-151.0,0.00021991,7]
[388816831,1759389035264,-151.0,0.00021991,7]
[388816832,1759389035273,-151.0,0.00021991,7]
[388816833,1759389035282,-151.0,0.00021991,7]
[388816834,1759389035291,-151.0,0.00021991,7]
[388816835,1759389035301,-151.0,0.00021991,7]
[388816836,1759389035310,-152.468174,0.00021991,7]
[388816837,1759389035323,-151.0,0.00021991,7]
[388816838,1759389035345,-193.749357,0.00021991,7]
[388816839,1759389035363,-220.022776,0.00021991,7]
[388816840,1759389035382,-151.0,0.00021991,7]
[388816841,1759389035402,-151.0,0.00021991,7]
[388816842,1759389035421,-179.094889,0.00021991,7]
[388816843,1759389035439,-151.0,0.00021991,7]
[388816844,1759389035455,-179.094889,0.00021991,7]
[388816845,1759389035471,-151.0,0.00021991,7]
[388816846,1759389035489,-179.094889,0.00021991,7]
[388816847,1759389035510,-151.0,0.00021991,7]
[388816848,1759389035525,-179.094889,0.00021991,7]
[388816849,1759389035543,-151.0,0.00021991,7]
[388816850,1759389035561,-151.0,0.00021991,7]
[388816851,1759389035577,-151.0,0.00021991,7]
[388816852,1759389035591,-151.0,0.00021991,7]
[388816853,1759389035605,-151.0,0.00021991,7]
[388816854,1759389035621,-151.0,0.00021991,7]
[388816855,1759389035636,-151.0,0.00021991,7]
[388816856,1759389035652,-151.0,0.00021991,7]
[388816857,1759389035667,-196.929054,0.00021991,7]
[388816858,1759389035682,-151.0,0.00021991,7]